Cogmind - Beta 16.1 @@@ ROGUE MODE // 2026.03.03 @ 19:24:05 Player: Kakograf Result: Self-destructed Performance ------------- Evolutions (5) 2500 Regions Visited (8) 1600 Robots Destroyed (38) 190 Value Destroyed (1336) 1336 Prototype IDs (1) 20 Alien Tech Used (0) 0 Bonus (811) 811 TOTAL SCORE: 6457 Bonus ------- Follower Combat Kills 211 Met Imprinter 300 Was Imprinted 300 Cogmind --------- Core Integrity 962/1000 Matter 83/300 Energy 310/310 System Corruption 3% Temperature Cool (0) Movement Core (450) Ox8 Location -5/Factory Parts ------- > --- POWER (2) -------- Fission Core > --- PROPULSION (3) --- Armored Leg > --- UTILITY (9) ------ Small Storage Unit Visual Processing Unit Improved Signal Interpreter Targeting Computer Improved Hardlight Generator Hacking Drone Bay (1/1) > --- WEAPON (3) ------- Mini Grenade Launcher > --- INVENTORY (8) ---- Weight Redist. System Peak State ------------ > --- POWER ------------ Light Deuterium Engine Fission Core > --- PROPULSION ------- Carbon-fiber Leg Carbon-fiber Leg Armored Leg > --- UTILITY ---------- Small Storage Unit Visual Processing Unit Improved Signal Interpreter Targeting Computer Cloaking Device Improved Hardlight Generator Hacking Suite Hacking Drone Bay > --- WEAPON ----------- Mini Grenade Launcher Heavy Rocket Launcher > --- INVENTORY -------- Weight Redist. System [Rating: 54] Favorites ----------- Power Improved Ion Engine Engine Improved Ion Engine Power Core Light Nuclear Core Reactor Light Antimatter Reactor Propulsion Carbon-fiber Leg Treads Light Treads Leg Carbon-fiber Leg Utility Small Storage Unit Device Improved Heat Sink Storage Small Storage Unit Processor Targeting Computer Hackware Hacking Suite Weapon Heavy Assault Rifle Energy Gun Medium Laser Ballistic Gun Heavy Assault Rifle Launcher Mini Grenade Launcher Build | -11 -10 -10 -9 -9 -7 -6 -6 -5 ------- Run | Yrd Mat Min Mat Min Zio Pro Fac Fac Slots Evolved 10 | . . . 2 . . . 6 2 Power 1 | . . . . . . . 1 . Propulsion 1 | . . . . . . . 1 . Utility 7 | . . . 2 . . . 3 2 Weapon 1 | . . . . . . . 1 . Parts Attached 46 | 5 7 . 11 . 1 3 15 4 Power 8 | 1 1 . 1 . . 1 2 2 Engine 4 | 1 1 . 1 . . . . 1 Core 3 | . . . . . . . 2 1 Reactor 1 | . . . . . . 1 . . Propulsion 15 | 2 2 . 6 . 1 1 3 . Treads 2 | . . . 2 . . . . . Leg 13 | 2 2 . 4 . 1 1 3 . Wheel . | . . . . . . . . . Hover . | . . . . . . . . . Flight . | . . . . . . . . . Utility 11 | 1 1 . 2 . . . 5 2 Device 5 | . . . 1 . . . 2 2 Storage 1 | 1 . . . . . . . . Processor 3 | . 1 . 1 . . . 1 . Hackware 2 | . . . . . . . 2 . Protection . | . . . . . . . . . Artifact . | . . . . . . . . . Weapon 12 | 1 3 . 2 . . 1 5 . Energy Gun 4 | . 2 . . . . . 2 . Energy Cannon . | . . . . . . . . . Ballistic Gun 5 | 1 1 . 2 . . 1 . . Ballistic Cannon . | . . . . . . . . . Launcher 3 | . . . . . . . 3 . Special Weapon . | . . . . . . . . . Impact Weapon . | . . . . . . . . . Slashing Weapon . | . . . . . . . . . Piercing Weapon . | . . . . . . . . . Special Melee Weapon . | . . . . . . . . . Unidentified Prototypes 1 | . . . . . . . . 1 Parts Lost 21 | . . . 1 . . 1 13 6 Power 4 | . . . . . . . 3 1 Propulsion 5 | . . . 1 . . . 2 2 Utility 5 | . . . . . . . 3 2 Weapon 7 | . . . . . . 1 5 1 Highest Loss Streak 7 | . . . 1 . . 1 7 6 To Critical Strikes 2 | . . . . . . . 2 . Average Backups 6 | 3 6 8 7 8 8 7 3 1 Power . | . 1 1 1 1 1 1 . . Propulsion . | . 2 2 1 . . . . . Utility 2 | . 2 4 2 3 3 3 1 1 Weapon 2 | 1 1 1 3 4 4 3 1 . Tool/Special . | . . . . . . . . . Unused Backups 4 | . . . 1 . 1 1 . 1 Power . | . . . . . . . . . Propulsion 1 | . . . 1 . . . . . Utility 2 | . . . . . 1 . . 1 Weapon 1 | . . . . . . 1 . . Tool/Special . | . . . . . . . . . Average Slot Usage (%) 92 | . 94 100 91 100 100 100 73 77 Engine 6 | . 14 14 11 11 11 1 . . Core 1 | . . . . . . . 7 2 Reactor 2 | . . . . . . 9 1 . Leg 19 | . 27 28 15 22 22 22 9 17 Device 8 | . . . 4 11 11 11 8 15 Storage 10 | . 14 14 11 11 11 11 6 5 Processor 19 | . 10 14 22 22 22 22 17 17 Hackware 1 | . . . . . . . 7 5 Energy Gun 3 | . 13 28 8 . . . 3 . Ballistic Gun 15 | . 14 . 13 22 22 22 3 . Launcher 1 | . . . . . . . 4 11 Peak Build Rating 54 | 5 8 8 17 17 19 27 37 54 Average Rating 21 | 3 7 8 13 17 18 24 32 47 On Entrance 14 | . 5 8 8 17 17 19 27 33 Avg Prop Armor Cover (%) 7 | . . . . . . . . 7 Naked Turns . | . . . . . . . . . Heaviest Build 38 | 10 11 11 19 19 19 24 29 38 Greatest Support 46 | 20 20 20 40 23 25 30 46 46 Greatest Overweight (x) 1 | 1 1 . 1 . . . 1 1 Average Overweight (x) . | . . . . . . . . . Largest Inventory Capacity 8 | 8 8 8 8 8 8 8 8 8 Average Capacity 7 | 6 8 8 8 8 8 8 8 8 Most Carried 8 | 5 8 8 8 8 8 8 8 1 Average Carried 6 | 3 6 8 7 8 8 7 3 1 Final Capacity 8 | 8 8 8 8 8 8 8 8 8 Final Carried 8 | 5 8 8 8 8 8 8 2 1 Class Distribution -------------------- 70% | Scavenger-Mutant 22% | Mutant 7% | Scavenger-Skirmisher Dominant Class ---------------- Mutant | -10/Materials Mutant | -10/Mines Scavenger-Mutant | -9/Materials Scavenger-Mutant | -9/Mines Scavenger-Mutant | -7/Zion Scavenger-Mutant | -6/Proximity Caves Scavenger-Mutant | -6/Factory Scavenger-Mutant | -5/Factory Resources | -11 -10 -10 -9 -9 -7 -6 -6 -5 ----------- Run | Yrd Mat Min Mat Min Zio Pro Fac Fac Matter Collected 955 | 224 221 . 244 . 10 110 122 24 Remotely . | . . . . . . . . . Salvage Created 1377 | . 320 . 550 . . 166 195 146 Parts 81 | . 13 . 33 . . 10 7 18 Haulers Intercepted . | . . . . . . . . . Recyclers Shooed 2 | . . . 1 . . . . 1 Parts Field Recycled . | . . . . . . . . . Retrieved Matter . | . . . . . . . . . Parts Self-Destructed 15 | . . . . . . 15 . . Prevented 5 | . . . . . . 5 . . Parts Restored . | . . . . . . . . . Kills | -11 -10 -10 -9 -9 -7 -6 -6 -5 ------- Run | Yrd Mat Min Mat Min Zio Pro Fac Fac Combat Hostiles Destroyed 26 | . 6 . 10 . . 4 5 1 Guns 22 | . 6 . 10 . . 4 2 . AOE 4 | . . . . . . . 3 1 Classes Destroyed 11 | . 3 . 3 . . 3 . 2 Worker 1 | . . . . . . . . 1 Builder 5 | . . . . . . . . 5 Recycler 1 | . . . 1 . . . . . Operator 2 | . 1 . 1 . . . . . Drone 1 | . . . . . . 1 . . Watcher 3 | . 2 . . . . . . 1 Grunt 15 | . 6 . 5 . . 1 3 . Duelist 1 | . . . 1 . . . . . Sentry 4 | . . . 4 . . . . . Hunter 4 | . . . . . . 1 2 1 Programmer 1 | . . . . . . 1 . . Best Kill Streak 7 | . 2 . 5 . . 1 3 7 Combat Bots Only 4 | . 2 . 4 . . 1 3 1 Max Kills in Single Turn 4 | . 1 . 2 . . 1 2 4 Gunslinging . | . . . . . . . . . Exploded 2 | . . . . . . . 2 1 Melee . | . . . . . . . . . Uniques/NPCs Destroyed . | . . . . . . . . . Combat | -11 -10 -10 -9 -9 -7 -6 -6 -5 -------- Run | Yrd Mat Min Mat Min Zio Pro Fac Fac Hostile Shots Fired 250 | . 43 . 66 . . 9 105 27 Missed 63 | . 8 . 17 . . 2 28 8 Hits 187 | . 35 . 49 . . 7 77 19 Melee 1 | . . . 1 . . . . . Projectile 186 | . 35 . 48 . . 7 77 19 Critical Strikes 10 | . . . 4 . . 2 3 1 Part Disruptions 1 | . . . . . . . . 1 Damage Taken 2874 | . 451 . 695 . . 133 1143 452 Core 495 | . 44 . 141 . . 60 212 38 Absorbed by Shields . | . . . . . . . . . Core Remaining (%) 76 | 100 . 82 . . . 49 75 . Volleys Fired 106 | . 34 . 36 . . 13 17 6 Largest 3 | . 2 . 2 . . 2 3 2 Hottest 152 | . 90 . 90 . . 46 152 69 Shots Fired 210 | . 68 . 72 . . 25 36 9 Gun 194 | . 68 . 72 . . 25 29 . Cannon . | . . . . . . . . . Launcher 16 | . . . . . . . 7 9 Special . | . . . . . . . . . Kinetic 141 | . 51 . 48 . . 25 17 . Thermal 50 | . 17 . 24 . . . 9 . Explosive 16 | . . . . . . . 7 9 Electromagnetic 3 | . . . . . . . 3 . Robot Hit Streak 25 | . 10 . 25 . . 11 8 3 Robot Miss Streak 5 | . 2 . 1 . . 5 2 3 Penetration Max . | . . . . . . . . . Secondary Targets . | . . . . . . . . . Shots Hit Robots 156 | . 48 . 63 . . 17 23 5 Core Hits 91 | . 18 . 21 . . 7 17 28 Critical Kills 1 | . . . . . . 1 . . Critical Parts Destroyed 1 | . . . . . . 1 . . Critical Strikes 3 | . . . 1 . . 2 . . Burn 1 | . . . 1 . . . . . Destroy 2 | . . . . . . 2 . . Melee Attacks . | . . . . . . . . . Impact . | . . . . . . . . . Slashing . | . . . . . . . . . Piercing . | . . . . . . . . . Sneak Attacks . | . . . . . . . . . Combat Hostiles . | . . . . . . . . . Follow-up Attacks . | . . . . . . . . . Damage Inflicted 3310 | . 527 . 918 . . 280 702 883 Guns 2020 | . 527 . 904 . . 280 309 . Cannons . | . . . . . . . . . Explosions 1274 | . . . . . . . 391 883 Melee . | . . . . . . . . . Ramming 16 | . . . 14 . . . 2 . Kinetic 1536 | . 434 . 634 . . 280 188 . Thermal 594 | . 93 . 270 . . . 78 153 Explosive 999 | . . . . . . . 391 608 Electromagnetic 165 | . . . . . . . 43 122 Impact . | . . . . . . . . . Slashing . | . . . . . . . . . Piercing . | . . . . . . . . . Highest Corruption 5 | . . . . . . . 5 3 Average Corruption 4 | . . . . . . . 4 1 Corruption Purged . | . . . . . . . . . Corruption Blocked . | . . . . . . . . . Effects 16 | . . . . . . . 16 . Message Errors 4 | . . . . . . . 4 . Matter Fused 6 | . . . . . . . 6 . Heat Flow Errors 1 | . . . . . . . 1 . Energy Discharges 4 | . . . . . . . 4 . Alerts 1 | . . . . . . . 1 . Overload Shots . | . . . . . . . . . Overflow Damage 21 | . . . . . . . . 21 Projectiles . | . . . . . . . . . Explosions 21 | . . . . . . . . 21 Melee . | . . . . . . . . . Knockbacks . | . . . . . . . . . Impact . | . . . . . . . . . Kinetic . | . . . . . . . . . Secondary . | . . . . . . . . . Self-Inflicted Damage 87 | . . . . . . . . 87 Shots 3 | . . . . . . . . 3 Rammed 1 | . . . 1 . . . . . Targets Rammed 4 | . . . 2 . . . 2 . Kicked 3 | . . . 1 . . . 2 . Crushed . | . . . . . . . . . Highest Temperature 309 | . 48 . 135 . . . 309 . Average Temperature 48 | . 15 . 54 . . . 97 . Received Heat Transfer 1167 | . 258 . 354 . . 12 543 . Effects 1 | . . . . . . . 1 . Interference 1 | . . . . . . . 1 . Siege Activations . | . . . . . . . . . Martial Activations . | . . . . . . . . . Shielding Activations . | . . . . . . . . . Robots Disrupted . | . . . . . . . . . Combat Hostiles . | . . . . . . . . . Robots Corrupted . | . . . . . . . . . Combat Hostiles . | . . . . . . . . . Parts Fried 1 | . . . . . . . . 1 Impact Corruptions . | . . . . . . . . . Robots Melted . | . . . . . . . . . Combat Hostiles . | . . . . . . . . . Parts Melted 4 | . . . 3 . . . . 1 Heat Transferred 1424 | . 224 . 852 . . . 148 200 Parts Sabotaged . | . . . . . . . . . Parts Stolen . | . . . . . . . . . Parts Stripped . | . . . . . . . . . Power Chain Reactions 1 | . . . . . . . . 1 Alert | -11 -10 -10 -9 -9 -7 -6 -6 -5 ------- Run | Yrd Mat Min Mat Min Zio Pro Fac Fac Maximum Alert Level . | . . . . . . . . . Low Security (%) 100 | 100 100 100 100 100 . . 100 100 Level 1 . | . . . . . . . . . Level 2 . | . . . . . . . . . Level 3 . | . . . . . . . . . Level 4 . | . . . . . . . . . Level 5 . | . . . . . . . . . High Security . | . . . . . . . . . Max Security . | . . . . . . . . . Peak Influence 184 | . 60 . 95 25 . . 65 184 Initial 39 | . . . . 25 . . 39 9 Average 18 | . 15 . 35 20 . . 10 15 Influence Increases 1233 | . 177 . 295 . . 322 203 236 Destroy 0b10 Robot/C 640 | . 120 . 200 . . 180 120 20 Destroy 0b10 Robot/NC 75 | . 15 . 10 . . 10 5 35 Destroy Leader 186 | . 34 . 70 . . 40 30 12 Allied During Kill 83 | . . . . . . 77 6 . Successful Hack 8 | . 8 . . . . . . . Disable Machine 75 | . . . 15 . . . 15 45 Destroy Structure 151 | . . . . . . . 27 124 Lose Combat Pursuer 15 | . . . . . . 15 . . Influence Decreases 1077 | . 177 . 228 52 15 259 246 100 Entered New Map 92 | . . . . 42 15 . 24 11 Time Decay 807 | . 177 . 218 10 . 232 141 29 Lost Part 151 | . . . 10 . . . 81 60 Lost Ally 27 | . . . . . . 27 . . Squads Dispatched 9 | . 3 . 2 . . . 3 1 Investigation 3 | . 2 . . . . . 1 . Extermination 1 | . . . . . . . 1 . Reinforcement 5 | . 1 . 2 . . . 1 1 Assault . | . . . . . . . . . Garrison . | . . . . . . . . . Intercept . | . . . . . . . . . Searches Triggered . | . . . . . . . . . Construction Impeded 1 | . . . . . . . . 1 Haulers Reinforced . | . . . . . . . . . Active Scanning Responses . | . . . . . . . . . Cargo Convoy Interrupts . | . . . . . . . . . Stealth | -11 -10 -10 -9 -9 -7 -6 -6 -5 --------- Run | Yrd Mat Min Mat Min Zio Pro Fac Fac Distress Signals 2 | . . . 1 . . . . 1 Communications Jammed . | . . . . . . . . . Distress Signals . | . . . . . . . . . Times Spotted 58 | . 13 . 20 . . 10 9 6 Peak Tracking Total 5 | . 2 . 5 . . 4 3 4 Tactical Retreats 1 | . . . . . . 1 . . Traps | -11 -10 -10 -9 -9 -7 -6 -6 -5 ------- Run | Yrd Mat Min Mat Min Zio Pro Fac Fac Traps Triggered 5 | . 2 . . . . . 3 . Indirectly . | . . . . . . . . . Trap Hack Attempts . | . . . . . . . . . Triggered . | . . . . . . . . . Disarmed . | . . . . . . . . . Reprogrammed . | . . . . . . . . . Reused . | . . . . . . . . . Traps Extracted . | . . . . . . . . . Installed . | . . . . . . . . . Triggered . | . . . . . . . . . Machines | -11 -10 -10 -9 -9 -7 -6 -6 -5 ---------- Run | Yrd Mat Min Mat Min Zio Pro Fac Fac Machines Disabled 5 | . . . 1 . . . 1 3 Max in Single Turn 1 | . . . 1 . . . 1 1 Machines Repaired . | . . . . . . . . . Machines Dismantled . | . . . . . . . . . Machines Sabotaged . | . . . . . . . . . Overloaded Fab Kills . | . . . . . . . . . Hacking | -11 -10 -10 -9 -9 -7 -6 -6 -5 --------- Run | Yrd Mat Min Mat Min Zio Pro Fac Fac Machines Accessed 5 | . 3 . 1 . . 1 . . Terminals 4 | . 3 . . . . 1 . . Fabricators . | . . . . . . . . . Repair Stations . | . . . . . . . . . Recycling Units . | . . . . . . . . . Scanalyzers 1 | . . . 1 . . . . . Garrison Access . | . . . . . . . . . Total Hacks 14 | . 9 . 4 . . 1 . . Successful 6 | . 2 . 3 . . 1 . . Failed 8 | . 7 . 1 . . . . . Catastrophic 3 | . 3 . . . . . . . Database Lockouts . | . . . . . . . . . Manual 10 | . 6 . . . 2 . 2 . Terminals 10 | . 9 . . . . 1 . . Fabricators . | . . . . . . . . . Repair Stations . | . . . . . . . . . Recycling Units . | . . . . . . . . . Scanalyzers 4 | . . . 4 . . . . . Garrison Access . | . . . . . . . . . Terminal Hacks 3 | . 2 . . . . 1 . . Record 1 | . . . . . . 1 . . Scanalyzer Index 1 | . 1 . . . . . . . Investigation Status 1 | . 1 . . . . . . . Fabricator Hacks . | . . . . . . . . . Repair Station Hacks . | . . . . . . . . . Recycling Unit Hacks . | . . . . . . . . . Scanalyzer 3 | . . . 3 . . . . . Insert Component 1 | . . . 1 . . . . . Analyze 1 | . . . 1 . . . . . Retrieve Study 1 | . . . 1 . . . . . Garrison Access Hacks . | . . . . . . . . . Unauthorized Hacks . | . . . . . . . . . Terminals . | . . . . . . . . . Fabricators . | . . . . . . . . . Repair Stations . | . . . . . . . . . Recycling Units . | . . . . . . . . . Scanalyzers . | . . . . . . . . . Garrison Access . | . . . . . . . . . Data Cores Recovered . | . . . . . . . . . Used . | . . . . . . . . . Hacking Detections 5 | . 3 . 1 . . 1 . . Full Trace Events 2 | . 1 . 1 . . . . . Feedback Events . | . . . . . . . . . Feedback Blocked . | . . . . . . . . . Robot Schematics Acquired . | . . . . . . . . . Robots Built . | . . . . . . . . . Authchips . | . . . . . . . . . Time . | . . . . . . . . . Total Robot Build Rating . | . . . . . . . . . Part Schematics Acquired 1 | . . . 1 . . . . . Parts Built . | . . . . . . . . . Authchips . | . . . . . . . . . Time . | . . . . . . . . . Total Part Build Rating . | . . . . . . . . . Part Studies Acquired 1 | . . . 1 . . . . . Parts Repaired . | . . . . . . . . . Time . | . . . . . . . . . Parts Recycled . | . . . . . . . . . Recycled Matter . | . . . . . . . . . Retrieved Matter . | . . . . . . . . . Retrieved Components . | . . . . . . . . . Parts Scanalyzed 1 | . . . 1 . . . . . Part Schematics Acquired 1 | . . . 1 . . . . . Parts Damaged . | . . . . . . . . . Bothacking | -11 -10 -10 -9 -9 -7 -6 -6 -5 ------------ Run | Yrd Mat Min Mat Min Zio Pro Fac Fac Used RIF Installer . | . . . . . . . . . Robots Hacked . | . . . . . . . . . Non-combat . | . . . . . . . . . Combat . | . . . . . . . . . Robot Hacks Applied . | . . . . . . . . . Relay Couplers Released . | . . . . . . . . . Fabnet Peak Effective % . | . . . . . . . . . Robots Rewired . | . . . . . . . . . Allies Hacked . | . . . . . . . . . Hacks Repelled . | . . . . . . . . . Allies | -11 -10 -10 -9 -9 -7 -6 -6 -5 -------- Run | Yrd Mat Min Mat Min Zio Pro Fac Fac Total Allies 6 | . . . . . 6 . . . Largest Group 6 | . . . . . 6 6 1 . Highest-Rated Group 207 | . . . . . 207 207 38 . Highest-Rated Ally 40 | . . . . . 40 40 38 . Total Orders . | . . . . . . . . . Ally Attacks 40 | . . . . . . 33 7 . Total Damage 1188 | . . . . . . 1018 170 . Kills 10 | . . . . . . 8 2 . Allies Corrupted 1 | . . . . . . 1 . . Allies Melted . | . . . . . . . . . Intel | -11 -10 -10 -9 -9 -7 -6 -6 -5 ------- Run | Yrd Mat Min Mat Min Zio Pro Fac Fac Active Infowar (turns) 3578 | . . . 609 34 1079 1025 747 84 Optics 3575 | . . . 609 34 1079 1025 744 84 Sensors 370 | . . . . . . . 370 . Cloaking 480 | . . . . . . . 409 71 Robot Analysis Total . | . . . . . . . . . Derelict Logs Recovered 4 | . . . . 1 1 2 . . Drone Launches . | . . . . . . . . . Drone Recoveries . | . . . . . . . . . Exploration | -11 -10 -10 -9 -9 -7 -6 -6 -5 ------------- Run | Yrd Mat Min Mat Min Zio Pro Fac Fac Turns Passed 4427 | 53 602 30 609 34 1079 1025 759 236 Spaces Moved 2992 | 41 387 26 319 29 862 728 436 164 Core 13 | 13 . . . . . . . . Treads 65 | . . . 65 . . . . . Legs 2914 | 28 387 26 254 29 862 728 436 164 Wheels . | . . . . . . . . . Hover . | . . . . . . . . . Flight . | . . . . . . . . . Fastest Speed 50 | 50 120 120 120 120 120 120 120 120 Average Speed 126 | 101 121 120 131 120 120 120 154 120 Slowest Speed 190 | 120 190 120 190 120 120 120 190 190 Overloaded Moves . | . . . . . . . . . Propulsion Burnouts . | . . . . . . . . . Robots Hopped . | . . . . . . . . . Potential Cave-ins . | . . . . . . . . . Cave-ins Triggered . | . . . . . . . . . Exploration Rate (%) 34 | 3 65 11 34 13 86 78 13 6 Regions Visited 8 Branch Regions 4 Pre-discovered Areas 1 | . . 1 . . . . . . Known Exits Taken 1 | . . . . . . . 1 . Unknown Exits Taken 7 | 1 1 1 1 1 1 1 . . Scrap Searched 4 | . . . . . 2 2 . . Spaces Dug . | . . . . . . . . . Terrain Destroyed 142 | . . . . . . . 55 87 Melee . | . . . . . . . . . Projectile . | . . . . . . . . . AOE 142 | . . . . . . . 55 87 Terrain Rammed . | . . . . . . . . . Walls Destroyed . | . . . . . . . . . Machines Disabled . | . . . . . . . . . Actions | -11 -10 -10 -9 -9 -7 -6 -6 -5 --------- Run | Yrd Mat Min Mat Min Zio Pro Fac Fac Total 3433 | 50 455 25 439 28 907 856 481 192 Wait 244 | . 15 . 54 . 42 104 11 18 Move 2984 | 40 386 25 318 28 861 727 435 164 Hop . | . . . . . . . . . Pick Up 25 | 5 6 . 9 . 1 3 1 . Fast Attach 20 | 5 3 . . . . 1 8 3 Attach 14 | . 1 . 4 . . 1 7 1 Detach 1 | . 1 . . . . . . . Swap 14 | . 4 . 7 . 1 2 . . Drop 21 | . 5 . 9 . 2 5 . . Fire 106 | . 34 . 36 . . 13 17 6 Melee . | . . . . . . . . . Ram . | . . . . . . . . . Kick 3 | . . . 1 . . . 2 . Crush 1 | . . . 1 . . . . . Escape Stasis . | . . . . . . . . . Rewire . | . . . . . . . . . Trap . | . . . . . . . . . Miscellaneous . | . . . . . . . . . Route ------- -11/Scrapyard -10/Materials (discovered 3 exits: *Mat / [*Min] / [*Sub]) -10/Mines -9/Materials -9/Mines -7/Zion -6/Proximity Caves -6/Factory -5/Factory (discovered 1 exit: Upp) History --------- Turn | Location | Event 2 | -11/Scrapyard | Met Revision 17 7 | -11/Scrapyard | Discovered new exit (range 15) 54 | -11/Scrapyard | Entered Materials 334 | -10/Materials | Build established: Mutant 362 | -10/Materials | Discovered new exit (range 15) 454 | -10/Materials | Discovered new exit (range 6) 528 | -10/Materials | Discovered new exit (range 10) 656 | -10/Materials | Entered Mines 657 | -10/Mines | Learned location of Storage (-8) 671 | -10/Mines | Discovered new exit (range 10) 686 | -10/Mines | Entered Materials 686 | -9/Materials | Evolved 2 slots: Utility x2 1271 | -9/Materials | Discovered new exit (range 8) 1295 | -9/Materials | Entered Mines 1296 | -9/Mines | A Derelict revealed a hidden shortcut to a safe place 1310 | -9/Mines | Learned 2 Materials zone layouts 1329 | -9/Mines | Entered Zion 1344 | -7/Zion | Build established: Scavenger-Mutant 1379 | -7/Zion | Received a hallucinogenic algorithm 1379 | -7/Zion | Ran a hallucination algorithm 1440 | -7/Zion | Given A8's code to call for help 1466 | -7/Zion | Given the Hacking Drone Bay 1469 | -7/Zion | Found Prototype Device 1523 | -7/Zion | Gained Derelict followers 1650 | -7/Zion | Met Imprinter 1673 | -7/Zion | Imprinted 1675 | -7/Zion | Declared Zion's savior 2345 | -7/Zion | Discovered new exit (range 17) 2408 | -7/Zion | Entered Proximity Caves 2408 | -6/Proximity Caves | Accompanied by 6 allies 2503 | -6/Proximity Caves | Learned Factory stockpile data 2666 | -6/Proximity Caves | Learned location of 1 exit from Lower Caves 3358 | -6/Proximity Caves | Discovered new exit (range 17) 3376 | -6/Proximity Caves | Core integrity fell below 50% 3433 | -6/Proximity Caves | Entered Factory 3433 | -6/Factory | Accompanied by 1 ally 3433 | -6/Factory | Evolved 6 slots: Power x1, Propulsion x1, Utility x3, Weapon x1 3680 | -6/Factory | Lost 7 parts (1p1n2u3w) 4036 | -6/Factory | Build established: Scavenger-Skirmisher 4084 | -6/Factory | Discovered new exit (range 13) 4118 | -6/Factory | Identified exit to Factory 4127 | -6/Factory | Lost 5 parts (2p1n1u1w) 4153 | -6/Factory | Spotted B-75 Beast 4192 | -6/Factory | Entered another Factory area 4192 | -5/Factory | Evolved 2 slots: Utility x2 4192 | -5/Factory | Identified Hacking Drone Bay 4193 | -5/Factory | Identified exit to Upper Caves 4379 | -5/Factory | Build established: Scavenger-Mutant 4428 | -5/Factory | Self-destructed Last Messages --------------- U-05 Engineer lays Concrete. U-05 Engineer destroyed. Destroyed Hpw. Tractor Beam. U-05 Engineer destroyed. Hacking Suite destroyed. K-01 Serf collects debris. Fabricator disabled. K-01 Serf destroyed. Destroyed Com. Wheel. The unstable cave ceiling collapses. Carbon-fiber Leg destroyed. R-10 Processor collects Lgt. Ion Engine. Slug penetrates Wall. Hvy. Rocket Launcher destroyed. K-01 Serf collects debris. The unstable cave ceiling collapses. Penetrated by Slug. U-05 Engineer builds a Wall. K-01 Serf collects debris. R-10 Processor collects Wheel. Map ----- +----------------------------------------------------+ | ??????????????????????????????# """ ]# | | ??????????????????????????????# """ # | | ??????????????????????????????# """ # | | ??????????????????????????????# # | | ???????????????????##################### | | ???????????????????# #??????# | | ???????????????????# #??????# | | ???????????????????# #??????# | | ????????????????????? #??????# ##### | | ??????????????????????? #####??# #?? | | ????????????##############+############# # | | ?????????? A!%= + | | ?????????? !* k # """ | | ?????????? * R #??"" | | ??????????????########## % ###### #???? | | ????????????????# ## #???? | | ????????????????# """ %h! ###### #???? | | ????????????????# """ [= ###### #???? | | ????????????????# """ # # #???? | | ????????????????# # #???? | | ????????????????# "" ! ] # #???? | | ????????????????#""" # #???? | | ???????????????##"F R # ???? | | ??????????????? """ u !!R # ??? | | ?????????? u """ ] !/ # ""?? | | ?????????????## " @ # " "??? | | ????????? p p R u + " ??? | | ???????????#### # ### # ? ???? | | ?????????????# ? ### ???? # ? ???? | | ?????????????## # ? #???##?????? #??? ? ???? | | ??????????????### #??##??????????????????????????? | | ????????????????#????????????????????????????????? | | ?????????????????????????????????????????????????? | | ?????????????????????????????????????????????????? | | ?????????????????????????????????????????????????? | | ?????????????????????????????????????????????????? | | ?????????????????????????????????????????????????? | | ?????????????????????????????????????????????????? | | ?????????????????????????????????????????????????? | | ?????????????????????????????????????????????????? | | ?????????????????????????????????????????????????? | | ?????????????????????????????????????????????????? | | ?????????????????????????????????????????????????? | | ?????????????????????????????????????????????????? | | ?????????????????????????????????????????????????? | | ?????????????????????????????????????????????????? | | ?????????????????????????????????????????????????? | | ?????????????????????????????????????????????????? | | ?????????????????????????????????????????????????? | | ?????????????????????????????????????????????????? | +----------------------------------------------------+ Best States ------------- Heat Dissipation 51 Energy Generation 27 Energy Capacity 350 Matter Stores 300 Matter Capacity 300 Sight Range 18 Robot Scan Range 15 Terrain Scan Density 10 Cloak Strength 2 Evasion (%) 55 Targeting Accuracy 5 Recoil Reduction 2 Offensive Hacking 20 Item Schematics ----------------- Hacking Suite | -9/Materials | Scanalyzed Robot Schematics ------------------ None Fabricated ------------ Nothing Repaired ---------- Nothing Studied --------- Hvy. Assault Rifle | -9/Materials | Hacked Alien Tech Used ----------------- None Achievements -------------- You Again Challenges ------------ None Game ------ Seed FissionWeldingFlamer Manual? 0 Play Time 00:49:40 Cumulative 20.2 hours Start 2026.03.03 @ 18:33:35 End 2026.03.03 @ 19:24:05 Sessions 1 Manual Loads 0 Difficulty Rogue Special Mode None Game No. 29 Rogue 29 Adventurer 0 Explorer 0 Win Type - Total 0 Types 0/0/0/0/0/0/0/0/0/0 Lore% 6 Gallery% 19 Achievement% 16 Wizard Run 0 Options --------- Layout 1 ASCII 0 Keyboard 1 Movement Arrows Keybinds 0 Fullscreen 1 Font 24/Smallcaps Map View 50x35 Zoom Use 0% Tactical HUD 0 Map Filters NONE Filters NONE Steam 1 RUN: 01677112-238c-46b6-9a16-a3511fe90386